bitfinex/quotes_SOLUSD_20250207
["timestamp","ask_amount","ask_price","bid_price","bid_amount"]
[1738948821578,53.91617778,195.03,195.02,0.03]
[1738948822108,40.37883925,195.03,195.02,0.03]
[1738948822282,45.50623925,195.03,195.02,0.03]
[1738948822598,5.1271,195.05,195.02,0.03]
[1738948823011,45.50593925,195.05,195.02,0.03]
[1738948823208,40.37883925,195.03,195.02,0.03]
[1738948823587,40.37883925,195.07,195.02,0.03]
[1738948823790,40.37883925,195.07,195.02,40.40883925]
[1738948823791,5.1265,195.07,195.02,40.40883925]
[1738948824100,40.37883925,195.09,195.02,40.40883925]
[1738948824304,5.1245,195.15,195.03,5.1272]
[1738948824626,19.2915,195.2,195.1,40.37883925]
[1738948824791,40.37883925,195.16,195.08,40.37883925]
[1738948824995,40.37883925,195.15,195.07,40.37883925]
[1738948825520,40.37883925,195.16,195.08,40.37883925]
[1738948826017,40.37883925,195.14,195.06,40.37883925]
[1738948826214,40.37883925,195.14,195.07,40.37883925]
[1738948826427,5.1247,195.13,195.07,40.37883925]
[1738948826592,45.50353925,195.13,195.06,40.37883925]
[1738948826794,40.37883925,195.09,195.02,0.03]
[1738948827124,40.37883925,195.04,195.02,0.03]
[1738948827301,40.37883925,195.05,195.02,0.03]
[1738948827502,40.37883925,195.07,195.02,0.03]
[1738948828005,40.37883925,195.09,195.02,40.40883925]
[1738948828314,5.1261,195.08,195.02,40.40883925]
[1738948828527,40.37883925,195.06,195.02,0.03]
[1738948828729,40.37883925,195.03,195.02,0.03]
[1738948828903,40.37883925,195.04,195.02,0.03]
[1738948829105,40.37883925,195.03,195.02,0.03]
[1738948829406,40.37883925,195.03,194.96,40.37883925]
[1738948829407,20.0,194.96,194.74,1.0]
[1738948829586,20.0,194.96,194.77,1.0]
[1738948829793,0.96199084,195.01,194.77,1.0]
[1738948830005,13.53733853,195.0,194.79,1.0]
[1738948830206,13.53733853,195.0,194.76,313.0]
[1738948830207,0.96185586,194.99,194.76,313.0]
[1738948830409,5.131,194.89,194.82,40.37883925]
[1738948830725,40.37883925,194.9,194.82,40.37883925]
[1738948830926,5.1307,194.91,194.84,40.37883925]
[1738948831134,40.37883925,194.9,194.82,40.37883925]
[1738948831336,40.37883925,194.84,194.76,40.37883925]
[1738948831495,40.37883925,194.86,194.75,5.1347]
[1738948831701,5.1307,194.91,194.75,5.1347]
[1738948831917,17.9571,194.91,194.75,5.1347]
[1738948832220,40.37883925,194.85,194.78,40.37883925]
[1738948832425,40.37883925,194.88,194.83,0.03]
[1738948832632,40.37883925,194.87,194.83,0.03]
[1738948832925,5.1308,194.9,194.83,0.03]
[1738948832926,40.37883925,194.86,194.83,0.03]
[1738948833226,40.37883925,194.88,194.83,0.03]
[1738948833409,1.0,195.01,194.83,0.03]
[1738948833410,40.37883925,194.93,194.85,40.37883925]
[1738948833611,40.37883925,194.95,194.89,40.37883925]
[1738948833816,5.1292,194.97,194.89,40.37883925]
[1738948833817,40.37883925,194.97,194.89,40.37883925]
[1738948834009,40.37883925,194.96,194.88,40.37883925]
[1738948834209,40.37883925,194.94,194.87,40.37883925]
[1738948834415,40.37883925,194.94,194.85,45.51093925]
[1738948834621,40.37883925,194.98,194.91,40.37883925]
[1738948834925,5.1276,195.02,194.89,40.37883925]
[1738948834926,40.37883925,194.97,194.89,40.37883925]
[1738948835297,40.37883925,194.94,194.87,40.37883925]
[1738948835618,40.37883925,194.94,194.85,5.1321]
[1738948835619,40.37883925,194.93,194.86,40.37883925]
[1738948835833,40.37883925,194.93,194.85,40.37883925]
[1738948836006,13.53733853,194.99,194.83,0.03]
[1738948836007,40.37883925,194.92,194.84,40.37883925]
[1738948836503,40.37883925,194.93,194.85,5.132]
[1738948836819,40.37883925,194.93,194.83,0.03]
[1738948836820,40.37883925,194.88,194.83,0.03]
[1738948837014,40.37883925,194.87,194.83,0.03]
[1738948837527,17.9505,194.98,194.83,45.54143925]
[1738948837832,17.9505,194.98,194.83,5.1626]
[1738948838324,6.3405,195.1,194.88,1.0]
[1738948838625,5.1261,195.08,194.93,20.0]
[1738948838931,40.37883925,195.03,194.95,40.37883925]
[1738948839104,40.37883925,195.01,194.93,40.37883925]
[1738948839298,17.9413,195.08,194.93,20.0]
[1738948839502,1.5356,195.11,194.97,0.12549]
[1738948839714,6.6609,195.11,194.98,20.0]
[1738948840000,6.1134,195.18,194.99,0.25098]
[1738948840330,6.7941,195.19,195.01,0.12549]
[1738948840500,6.7941,195.19,195.0,22.0]
[1738948840501,0.12549,195.17,195.05,20.0]
[1738948840706,40.37883925,195.16,195.09,40.37883925]
[1738948840912,13.41184853,195.16,195.1,40.37883925]
[1738948841109,13.41184853,195.16,195.02,5.1276]
[1738948841110,13.41184853,195.14,195.08,40.37883925]
[1738948841710,40.37883925,195.09,195.02,40.37883925]
[1738948842031,40.37883925,195.08,195.0,40.37883925]
[1738948842526,40.37883925,195.07,195.0,40.37883925]
[1738948842720,40.37883925,195.1,195.02,40.37883925]
[1738948842907,40.37883925,195.12,195.04,40.37883925]
[1738948843106,2.63171467,195.19,195.1,40.37883925]
[1738948843107,40.37883925,195.18,195.1,40.37883925]
[1738948843413,40.37883925,195.18,195.11,40.37883925]
[1738948843624,1.6707,195.19,195.13,40.37883925]
[1738948843928,13.53733853,195.18,194.97,1.0]
[1738948844099,40.37883925,195.17,195.11,40.37883925]
[1738948844304,13.41184853,195.18,195.11,40.37883925]
[1738948844706,13.41184853,195.15,195.09,40.37883925]
[1738948844915,40.37883925,195.13,195.05,40.37883925]
[1738948845513,40.37883925,195.12,195.04,40.37883925]
[1738948845918,40.37883925,195.12,195.05,40.37883925]
[1738948846132,40.37883925,195.12,195.04,40.37883925]
[1738948846311,40.37883925,195.12,195.05,40.37883925]
[1738948846627,45.50253925,195.17,195.09,40.37883925]
[1738948846827,40.37883925,195.11,195.01,5.1279]
[1738948847042,0.12549,195.15,195.03,40.37883925]
[1738948847211,40.37883925,195.07,194.95,5.1295]
[1738948847408,0.12549,195.16,194.95,17.9533]
[1738948847713,40.37883925,195.08,195.01,40.37883925]
[1738948848231,40.37883925,195.09,195.02,40.37883925]
[1738948848634,40.37883925,195.05,194.98,40.37883925]
[1738948848931,40.37883925,195.06,194.99,40.37883925]
[1738948849129,40.37883925,195.05,194.98,40.37883925]
[1738948849313,40.37883925,195.06,194.98,40.37883925]
[1738948849514,53.79068778,195.05,194.98,40.37883925]
[1738948849710,40.37883925,195.06,194.99,40.37883925]
[1738948850017,40.37883925,195.06,194.98,40.37883925]
[1738948850018,40.37883925,195.05,194.98,40.37883925]
[1738948850905,53.79068778,195.06,194.98,40.37883925]
[1738948851110,5.1268,195.05,194.98,40.37883925]
[1738948851607,40.37883925,195.08,195.0,40.37883925]
[1738948852025,13.41184853,195.07,195.0,40.37883925]
[1738948852224,40.37883925,195.06,194.99,40.37883925]
[1738948852423,40.37883925,195.05,194.97,40.37883925]
[1738948852821,40.37883925,195.04,194.97,40.37883925]
[1738948853017,0.12549,195.14,194.95,5.1295]
[1738948853018,40.37883925,195.12,195.03,40.37883925]
[1738948853208,6.0349,195.17,195.07,40.37883925]
[1738948853209,40.37883925,195.15,195.07,40.37883925]
[1738948853409,53.79068778,195.1,195.02,40.37883925]
[1738948853610,40.37883925,195.09,195.02,40.37883925]
[1738948853839,0.25098,195.14,194.96,5.1292]
[1738948854142,40.37883925,195.06,194.99,40.37883925]
[1738948854442,40.37883925,195.08,195.01,40.37883925]
[1738948854637,40.37883925,195.1,195.02,40.37883925]
[1738948854841,40.37883925,195.12,195.04,40.37883925]
[1738948855010,40.37883925,195.13,195.06,40.37883925]
[1738948855213,40.37883925,195.13,194.95,2.0]
[1738948855214,40.37883925,195.1,195.03,40.37883925]
[1738948855412,40.37883925,195.08,195.01,40.37883925]
[1738948855616,53.79068778,195.1,195.02,40.37883925]
[1738948855817,40.37883925,195.1,195.02,40.37883925]
[1738948856012,40.37883925,195.11,195.04,40.37883925]
[1738948856241,45.50323925,195.15,195.07,40.37883925]
[1738948856563,5.1244,195.15,195.09,40.37883925]
[1738948857317,0.063,195.13,195.1,40.37883925]
[1738948857914,4.6871,195.16,195.1,40.37883925]
[1738948858332,40.37883925,195.13,195.06,40.37883925]
[1738948858513,40.37883925,195.14,195.07,40.37883925]
[1738948858714,45.06593925,195.16,195.08,40.37883925]
[1738948858910,4.6871,195.16,195.1,40.37883925]
[1738948859136,27.89114853,195.19,195.13,40.37883925]
[1738948859137,15.08254853,195.19,195.13,40.37883925]
[1738948859338,40.37883925,195.15,195.07,40.37883925]
[1738948859518,40.37883925,195.1,195.01,5.1279]
[1738948859726,40.37883925,195.09,195.02,40.37883925]
[1738948859917,40.37883925,195.08,195.0,40.37883925]
[1738948860130,40.37883925,195.04,194.97,40.37883925]
[1738948860341,40.37883925,195.02,194.94,40.37883925]
[1738948860544,40.37883925,195.04,194.96,40.37883925]
[1738948860735,40.37883925,195.1,194.93,1.0]
[1738948860937,40.37883925,195.06,194.92,1.0]
[1738948861140,40.37883925,195.06,194.99,40.37883925]
[1738948861447,40.37883925,195.02,194.94,40.37883925]
[1738948861950,40.37883925,195.06,195.0,40.37883925]
[1738948862248,40.37883925,195.01,194.93,40.37883925]
[1738948862420,40.37883925,195.01,194.92,5.1303]
[1738948862421,40.37883925,195.07,194.99,40.37883925]
[1738948863145,40.37883925,195.08,195.01,40.37883925]
[1738948863352,40.37883925,195.11,195.03,40.37883925]
[1738948863558,40.37883925,195.11,194.94,1.12549]
[1738948863559,5.125,195.12,195.05,40.37883925]
[1738948863730,11.5272,195.15,195.09,40.37883925]
[1738948864057,11.5272,195.15,195.0,40.37883925]
[1738948864058,40.37883925,195.12,195.04,40.37883925]
[1738948864541,53.79068778,195.14,195.06,40.37883925]
[1738948865325,5.1247,195.13,195.06,40.37883925]
[1738948865528,13.53733853,195.12,195.0,40.37883925]
[1738948865716,40.37883925,195.08,195.0,40.37883925]
[1738948865919,40.37883925,195.1,195.02,40.37883925]
[1738948866119,40.37883925,195.1,195.04,40.37883925]
[1738948866325,40.37883925,195.1,194.98,17.9504]
[1738948866326,5.124,195.16,195.08,40.37883925]
[1738948866526,5.124,195.16,195.0,41.50432925]
[1738948866527,5.124,195.16,195.1,40.37883925]
[1738948866736,13.41184853,195.14,195.07,40.37883925]
[1738948866929,40.37883925,195.1,195.02,40.37883925]
[1738948867132,40.37883925,195.12,195.04,40.37883925]
[1738948867323,45.50403925,195.12,195.04,40.37883925]
[1738948867535,40.37883925,195.1,195.02,40.37883925]
[1738948867728,45.50403925,195.12,195.04,40.37883925]
[1738948867944,5.1252,195.12,195.06,40.37883925]
[1738948868562,40.37883925,195.14,195.06,40.37883925]
[1738948868938,45.50223925,195.18,195.1,40.37883925]
[1738948869333,1.6707,195.19,195.14,40.37883925]
[1738948869568,0.063,195.19,195.16,40.37883925]
[1738948870076,0.063,195.19,195.18,40.37883925]
[1738948870868,0.063,195.19,195.18,45.50223925]
[1738948871448,0.063,195.19,195.13,40.37883925]
[1738948871642,0.063,195.19,195.17,40.37883925]
[1738948871836,0.063,195.19,195.16,20.0]
[1738948872037,0.063,195.33,195.22,0.12549]
[1738948872565,0.063,195.33,195.26,0.12549]
[1738948872767,0.063,195.33,195.3,0.12549]
[1738948873063,0.063,195.33,195.32,40.37883925]
[1738948873866,0.063,195.36,195.32,40.50432925]
[1738948874040,0.063,195.36,195.33,60.37883925]
[1738948874235,0.063,195.36,195.33,60.50432925]
[1738948874459,0.0001,195.36,195.35,40.50432925]
[1738948874758,0.063,195.39,195.38,20.12549]
[1738948874759,0.0001,195.39,195.38,20.12549]
[1738948874964,0.0001,195.39,195.38,100.8831685]
[1738948875149,0.0001,195.39,195.38,412.8831685]
[1738948875334,0.0001,195.39,195.38,60.37883925]
[1738948875735,0.0001,195.39,195.38,40.37883925]
[1738948876457,0.0001,195.39,195.36,40.37883925]
[1738948876645,0.0001,195.39,195.33,40.37883925]
[1738948876847,45.49683925,195.39,195.32,40.37883925]
[1738948877237,0.0001,195.39,195.3,40.50432925]
[1738948877461,0.0001,195.39,195.38,40.37883925]
[1738948877964,0.0001,195.39,195.35,40.37883925]
[1738948878565,0.0001,195.39,195.33,40.37883925]
[1738948878755,0.0001,195.39,195.34,40.37883925]
[1738948879060,0.0001,195.39,195.35,40.37883925]
[1738948879264,0.0001,195.39,195.3,40.37883925]
[1738948879265,0.0001,195.39,195.37,40.37883925]
[1738948879965,0.0001,195.39,195.33,40.37883925]
[1738948880172,0.0001,195.39,195.23,12.805]
[1738948880173,40.37883925,195.35,195.28,40.37883925]
[1738948880474,13.41184853,195.36,195.29,40.37883925]
[1738948880676,40.37883925,195.36,195.29,40.37883925]
[1738948880847,0.12549,195.34,195.25,40.37883925]
[1738948881045,40.37883925,195.29,195.21,40.37883925]
[1738948881387,53.79068778,195.27,195.19,40.37883925]
[1738948881680,13.41184853,195.25,195.19,40.37883925]
[1738948881980,40.37883925,195.24,195.17,40.37883925]
[1738948882344,40.37883925,195.25,195.18,40.37883925]
[1738948882544,40.37883925,195.27,195.19,40.37883925]
[1738948882771,13.41184853,195.25,195.19,40.37883925]
[1738948883068,40.37883925,195.25,195.17,40.37883925]
[1738948883246,40.37883925,195.23,195.16,40.37883925]
[1738948883452,13.41184853,195.22,195.15,40.40883925]
[1738948883656,13.41184853,195.2,195.15,0.03]
[1738948883859,53.79068778,195.2,195.15,0.03]
[1738948884378,13.41184853,195.2,195.15,0.03]
[1738948884589,40.37883925,195.27,195.19,40.37883925]
[1738948884746,40.37883925,195.28,195.2,40.37883925]
[1738948884950,40.37883925,195.25,195.18,40.37883925]
[1738948885155,13.66282853,195.23,195.15,0.03]
[1738948885353,0.12549,195.2,195.15,0.03]
[1738948885586,13.66282853,195.18,195.15,0.03]
[1738948885751,33.41184853,195.15,194.98,12.8212]
[1738948885954,0.25098,195.14,194.95,5.1295]
[1738948886278,40.37883925,195.07,195.0,40.37883925]
[1738948886655,40.37883925,195.08,195.02,40.37883925]
[1738948886851,40.37883925,195.04,194.96,40.37883925]
[1738948887080,20.0,195.01,194.91,7.97922056]
[1738948887294,40.37883925,194.92,194.91,7.97922056]
[1738948887587,0.96197742,194.97,194.91,7.97922056]
[1738948887876,0.12549,194.92,194.91,7.97922056]
[1738948888051,40.50432925,194.93,194.91,7.97922056]
[1738948888052,40.37883925,194.95,194.91,7.97922056]
[1738948888248,40.37883925,194.98,194.91,7.97922056]
[1738948888766,1.6427,195.03,194.92,40.37883925]
[1738948888767,40.37883925,195.01,194.92,40.37883925]
[1738948888968,18.79102853,195.0,194.92,40.37883925]
[1738948889291,42.02153925,195.03,194.94,40.37883925]
[1738948889469,1.6427,195.03,194.96,40.37883925]
[1738948889787,2.25283799,195.13,194.91,5.1605]
[1738948889788,40.37883925,195.08,195.0,40.37883925]
[1738948890086,40.37883925,195.09,195.03,40.37883925]
[1738948890286,1.5097,195.12,195.07,40.37883925]
[1738948890787,40.37883925,195.18,195.1,40.37883925]
[1738948891074,40.37883925,195.13,195.07,40.37883925]
[1738948891375,40.37883925,195.08,195.0,40.37883925]
[1738948891582,40.37883925,195.07,194.99,40.37883925]
[1738948891873,40.37883925,195.07,194.96,5.1292]
[1738948891874,40.37883925,195.1,195.02,40.37883925]
[1738948892088,40.37883925,195.12,195.04,40.37883925]
[1738948892251,40.37883925,195.05,194.96,40.37883925]
[1738948892451,40.37883925,195.02,194.95,40.37883925]
[1738948892652,40.37883925,195.06,194.97,40.37883925]
[1738948892874,13.41184853,195.03,194.97,40.37883925]
[1738948893455,18.53924853,195.03,194.97,40.37883925]
[1738948893664,40.37883925,195.04,194.97,40.37883925]
[1738948893972,40.37883925,195.1,195.03,40.37883925]
[1738948894160,45.50383925,195.12,195.03,40.37883925]
[1738948894363,40.37883925,195.1,195.02,40.37883925]
[1738948894577,13.53733853,195.09,195.02,40.37883925]
[1738948894962,45.50493925,195.09,195.02,40.37883925]
[1738948895164,45.50333925,195.14,195.06,40.37883925]
[1738948895477,40.37883925,195.08,195.03,0.03]
[1738948895780,18.8968553,195.14,195.03,40.40883925]
[1738948895781,40.37883925,195.11,195.03,40.40883925]
[1738948896088,5.1245,195.14,195.03,0.03]
[1738948896089,18.89684692,195.14,195.03,0.03]
[1738948896385,13.66282853,195.13,195.03,0.03]
[1738948896969,40.37883925,195.08,195.03,0.03]
[1738948897167,5.1258,195.1,195.05,40.37883925]
[1738948897369,5.1251,195.12,195.05,40.37883925]
[1738948897561,45.50343925,195.14,195.03,20.03]
[1738948897780,1.5973,195.2,195.03,20.03]
[1738948898064,13.47484853,195.15,195.03,20.03]
[1738948898274,13.47484853,195.15,195.09,40.37883925]
[1738948898473,13.47484853,195.15,195.03,40.40883925]
[1738948898474,40.37883925,195.11,195.03,40.40883925]
[1738948898660,53.79068778,195.13,195.05,40.37883925]
[1738948898860,13.53733853,195.07,195.03,0.03]
[1738948899062,13.41184853,195.05,195.03,0.03]
[1738948899261,0.12549,195.04,195.03,0.03]
[1738948899471,13.41184853,195.05,195.03,0.03]
[1738948899684,6.7231,195.06,195.03,0.03]
[1738948900069,1.5965,195.06,195.03,0.03]
[1738948900272,41.99003925,195.13,195.05,40.37883925]
[1738948900465,41.99003925,195.13,195.04,40.37883925]
[1738948900466,40.37883925,195.11,195.04,40.37883925]
[1738948900670,58.31643925,195.12,195.04,40.37883925]
[1738948900868,40.37883925,195.1,195.03,40.40883925]
[1738948901068,5.1263,195.07,195.03,0.03]
[1738948901283,13.41184853,195.05,195.03,0.03]
[1738948901464,13.41184853,195.04,195.03,0.03]
[1738948901666,13.41184853,195.05,195.03,0.03]
[1738948902180,5.126,195.09,195.04,40.37883925]
[1738948902378,40.37883925,195.11,195.03,0.03]
[1738948902379,40.37883925,195.1,195.03,0.03]
[1738948902579,13.53733853,195.07,195.03,0.03]
[1738948902784,5.125,195.12,195.03,0.03]
[1738948902985,1.6112,195.13,195.03,0.03]
[1738948903167,0.063,195.15,195.06,20.0]
[1738948903569,0.063,195.15,195.09,0.12549]
[1738948904070,0.063,195.15,195.14,40.37883925]
[1738948904599,7.79038349,195.27,195.17,20.0]
[1738948904774,7.79038349,195.27,195.26,40.37883925]
[1738948905279,0.063,195.35,195.26,45.50013925]
[1738948905482,0.063,195.35,195.32,40.37883925]
[1738948905685,5.1821,195.35,195.29,40.37883925]
[1738948905895,5.182,195.35,195.3,40.37883925]
[1738948906192,53.79068778,195.34,195.27,40.37883925]
[1738948906392,13.41184853,195.32,195.26,40.37883925]
[1738948906574,13.41184853,195.29,195.23,40.37883925]
[1738948906982,13.41184853,195.3,195.24,40.37883925]
[1738948907291,40.37883925,195.32,195.25,40.37883925]
[1738948907486,45.49843925,195.33,195.26,40.37883925]
[1738948907683,13.41184853,195.32,195.26,40.37883925]
[1738948907873,53.79068778,195.32,195.25,40.37883925]
[1738948908591,53.79068778,195.32,195.17,40.37883925]
[1738948908592,13.41184853,195.25,195.17,40.37883925]
[1738948908778,40.37883925,195.24,195.16,40.37883925]
[1738948908975,40.37883925,195.25,195.18,40.37883925]
[1738948909173,18.9184,195.33,195.15,5.1242]
[1738948909174,5.1198,195.32,195.15,5.1242]
[1738948909373,5.1198,195.32,195.15,17.9348]
[1738948909880,5.1198,195.32,195.18,20.0]
[1738948910074,0.063,195.35,195.22,0.12549]
[1738948910277,5.1822,195.35,195.33,40.37883925]
[1738948910580,5.1822,195.35,195.34,40.37883925]
[1738948910581,0.063,195.35,195.34,40.37883925]
[1738948910781,0.063,195.39,195.34,40.37883925]
[1738948910782,0.063,195.39,195.37,20.0]
[1738948910982,5.1139,195.55,195.4,1.0]
[1738948911185,5.1131,195.58,195.43,6.1169]
[1738948911376,31.22453398,195.59,195.52,40.37883925]
[1738948911708,31.22453398,195.59,195.58,1.0]
[1738948911996,31.22453398,195.59,195.58,80.7576785]
[1738948912195,20.21853406,195.59,195.58,80.7576785]
[1738948912374,46.74230097,195.62,195.58,80.7576785]
[1738948912572,46.74230097,195.62,195.61,40.37883925]
[1738948912999,0.063,195.66,195.61,40.37883925]
[1738948913200,0.063,195.66,195.64,40.37883925]
[1738948913401,0.063,195.66,195.53,5.1143]
[1738948914473,0.25098,195.67,195.54,7.86566319]
[1738948914701,40.37883925,195.68,195.61,40.37883925]
[1738948914873,40.37883925,195.69,195.62,40.37883925]
[1738948915274,5.1098,195.71,195.54,5.114]
[1738948915921,0.063,195.72,195.58,0.12549]
[1738948916214,0.063,195.72,195.57,20.0]
[1738948916215,5.1725,195.72,195.57,20.0]
[1738948916375,40.37883925,195.66,195.59,40.37883925]
[1738948916572,40.37883925,195.66,195.58,40.37883925]
[1738948916788,40.37883925,195.66,195.55,7.86566319]
[1738948916789,53.79068778,195.68,195.6,40.37883925]
[1738948916989,40.37883925,195.7,195.62,40.37883925]
[1738948917190,40.37883925,195.71,195.64,40.37883925]
[1738948917391,0.063,195.72,195.57,0.25098]
[1738948917585,0.063,195.72,195.65,10.38302182]
[1738948917785,5.1724,195.72,195.65,10.38302182]
[1738948917993,0.12549,195.7,195.65,10.38302182]
[1738948918398,40.37883925,195.66,195.65,10.38302182]
[1738948918595,40.37883925,195.66,195.65,6.93751493]
[1738948918787,3.57393942,195.66,195.57,1.0]
[1738948918989,40.37883925,195.63,195.56,41.37883925]
[1738948919187,40.37883925,195.64,195.56,40.37883925]
[1738948919395,40.37883925,195.64,195.62,7.80501756]
[1738948919598,40.37883925,195.63,195.62,7.80501756]
[1738948919798,40.37883925,195.63,195.58,15.61003513]
[1738948919799,0.25098,195.59,195.58,15.61003513]
[1738948920104,0.12549,195.59,195.58,15.61003513]
[1738948920291,5.1739,195.66,195.58,15.61003513]
[1738948920292,0.25098,195.61,195.58,15.61003513]
[1738948920681,5.1739,195.66,195.58,15.61003513]
[1738948920884,40.37883925,195.59,195.58,15.61003513]
[1738948921180,5.23819,195.59,195.55,31.46265277]
[1738948921380,0.12549,195.58,195.55,0.58995277]
[1738948921582,0.12549,195.58,195.51,40.37883925]
[1738948921583,40.37883925,195.58,195.51,40.37883925]
[1738948921895,0.12549,195.59,195.46,1.76695586]
[1738948922098,6.7416,195.6,195.51,1.0]
[1738948922099,40.28555717,195.6,195.51,1.0]
[1738948922298,6.7416,195.6,195.53,1.0]
[1738948922498,0.063,195.66,195.56,1.0]
[1738948922801,0.063,195.66,195.49,33.41184853]
[1738948922802,0.12549,195.63,195.53,1.0]
[1738948923000,40.37883925,195.62,195.57,1.0]
[1738948923204,40.37883925,195.62,195.58,1.0]
[1738948923395,40.37883925,195.59,195.53,1.0]
[1738948923591,20.0,195.62,195.49,1.0]
[1738948923792,5.1111,195.65,195.57,1.0]
[1738948924128,0.12549,195.61,195.51,1.0]
[1738948924311,5.1741,195.66,195.59,1.0]
[1738948924496,5.1741,195.66,195.57,1.0]
[1738948924497,5.174,195.66,195.57,1.0]
[1738948924691,0.063,195.66,195.6,1.0]
[1738948925006,0.063,195.66,195.63,40.37883925]
[1738948925192,40.37883925,195.65,195.59,1.0]
[1738948925502,0.063,195.66,195.6,1.0]
[1738948925702,0.063,195.66,195.61,0.25098]
[1738948925903,0.063,195.66,195.65,1.0]
[1738948926097,0.063,195.66,195.61,1.0]
[1738948926297,0.063,195.66,195.59,5.8789018]
[1738948926298,0.063,195.66,195.62,0.7665756]
[1738948926501,0.063,195.66,195.62,1.7665756]
[1738948926907,40.44183925,195.66,195.6,1.0]
[1738948927106,0.063,195.66,195.65,1.0]
[1738948927485,0.063,195.66,195.65,1.7662515]
[1738948927806,0.063,195.66,195.6,1.0]
[1738948928203,0.063,195.66,195.61,1.0]
[1738948928707,40.44183925,195.66,195.61,1.76654823]
[1738948928904,3.3541241,195.65,195.61,1.0]
[1738948929108,40.37883925,195.63,195.56,40.37883925]
[1738948929306,3.3541241,195.65,195.6,40.37883925]
[1738948929511,0.063,195.66,195.61,0.38682427]
[1738948930091,0.063,195.66,195.56,0.38663822]
[1738948930416,0.063,195.66,195.57,13.41184853]
[1738948930591,0.063,195.66,195.58,0.38679624]
[1738948930787,1.0,195.62,195.55,0.41684023]
[1738948930993,40.37883925,195.57,195.55,0.03]
[1738948931187,46.49233925,195.56,195.55,0.03]
[1738948931601,20.0,195.53,195.47,0.38825854]
[1738948931787,1.0,195.5,195.42,5.1171]
[1738948931989,1.0,195.55,195.43,0.38881503]
[1738948932195,15.15912297,195.56,195.43,0.38881503]
[1738948932403,10.04562297,195.56,195.46,20.12549]
[1738948932603,10.04562297,195.56,195.48,33.53733853]
[1738948932815,10.04562297,195.56,195.55,40.37883925]
[1738948932993,10.04562297,195.56,195.52,40.37883925]
[1738948933191,10.04562297,195.56,195.55,40.37883925]
[1738948933410,1.0,195.64,195.55,40.37883925]
[1738948933616,1.0,195.61,195.53,0.38726123]
[1738948933803,1.0,195.56,195.47,0.38761823]
[1738948934144,1.0,195.56,195.28,92.9769]
[1738948934145,1.0,195.47,195.39,0.38809841]
[1738948934309,1.0,195.44,195.36,5.1186]
[1738948934491,1.0,195.48,195.37,0.38919588]
[1738948934698,40.37883925,195.51,195.43,40.37883925]
[1738948934925,41.37883925,195.47,195.4,40.37883925]
[1738948935126,1.0,195.49,195.4,40.37883925]
[1738948935302,2.88169051,195.54,195.41,0.38882548]
[1738948935520,20.0,195.57,195.42,20.0]
[1738948935720,20.0,195.57,195.43,0.3883307]
[1738948936519,40.37883925,195.51,195.44,40.37883925]
[1738948936842,13.57228884,195.47,195.4,0.38848899]
[1738948937133,13.57228884,195.47,195.4,5.50608899]
[1738948937449,40.37883925,195.41,195.35,0.03]
[1738948937664,1.0,195.42,195.35,0.03]
[1738948937810,1.0,195.39,195.35,0.03]
[1738948938011,1.0,195.37,195.22,0.39030435]
[1738948938209,0.25098,195.35,195.18,5.1233]
[1738948938439,1.96012125,195.34,195.16,5.1238]
[1738948938737,40.37883925,195.26,195.18,40.37883925]
[1738948938922,40.37883925,195.26,195.16,5.1238]
[1738948938923,40.37883925,195.27,195.19,40.76968674]
[1738948939119,5.1195,195.33,195.19,0.39084749]
[1738948939120,40.37883925,195.26,195.19,0.39084749]
[1738948939425,5.1195,195.33,195.15,0.4209872]
[1738948939426,40.37883925,195.2,195.15,0.4209872]
[1738948939612,40.37883925,195.18,195.15,0.03]
[1738948939818,40.37883925,195.21,195.15,0.03]
[1738948940026,40.37883925,195.18,195.15,0.03]
[1738948940213,40.37883925,195.16,195.15,0.03]
[1738948940651,45.50283925,195.16,195.15,0.03]
[1738948940847,40.37883925,195.16,195.15,0.03]
[1738948941512,40.37883925,195.18,195.15,0.03]
[1738948941730,40.37883925,195.16,195.15,0.03]
[1738948942310,40.37883925,195.18,195.15,0.03]
[1738948942514,7.0,195.29,195.15,0.03]
[1738948942515,12.8045,195.25,195.15,0.03]
[1738948942746,40.37883925,195.16,195.15,0.03]